[Event "Late-Titled-Tuesday-Blitz-March-26-2024"]
[Site "Chess.com"]
[Date "2024.03.26"]
[Round "7"]
[White "Binary010"]
[Black "RebelJohnny"]
[Result "0-1"]
[WhiteElo "2770"]
[BlackElo "2609"]
[TimeControl "180+1"]
[EndTime "15:19:19 PDT"]
[Termination "RebelJohnny won on time"]

1. e4 {[%clk 0:03:00.9]} 1... c5 {[%clk 0:02:58.3]} 2. Nf3 {[%clk 0:03:01]} 2...
d6 {[%clk 0:02:57.9]} 3. Nc3 {[%clk 0:03:01.1]} 3... Nf6 {[%clk 0:02:56.5]} 4.
d4 {[%clk 0:03:01.4]} 4... cxd4 {[%clk 0:02:57.4]} 5. Qxd4 {[%clk 0:03:01.8]}
5... Nc6 {[%clk 0:02:54.8]} 6. Qe3 {[%clk 0:03:02.1]} 6... g6 {[%clk 0:02:50.1]}
7. Bc4 {[%clk 0:03:02.1]} 7... Bg7 {[%clk 0:02:49.9]} 8. O-O {[%clk 0:03:02.8]}
8... O-O {[%clk 0:02:49.2]} 9. h3 {[%clk 0:03:03]} 9... a6 {[%clk 0:02:43.6]}
10. a4 {[%clk 0:03:02.1]} 10... Be6 {[%clk 0:02:02.1]} 11. Bxe6 {[%clk
0:02:46.6]} 11... fxe6 {[%clk 0:02:03]} 12. e5 {[%clk 0:02:46.7]} 12... Nd5
{[%clk 0:02:00.3]} 13. Nxd5 {[%clk 0:02:45.1]} 13... exd5 {[%clk 0:02:01.2]} 14.
e6 {[%clk 0:02:28.1]} 14... Rc8 {[%clk 0:01:50.4]} 15. c3 {[%clk 0:02:23.2]}
15... Ne5 {[%clk 0:01:45.2]} 16. Nxe5 {[%clk 0:02:20.3]} 16... dxe5 {[%clk
0:01:42.4]} 17. Qa7 {[%clk 0:01:36.2]} 17... Qc7 {[%clk 0:01:15]} 18. Be3 {[%clk
0:01:25.1]} 18... Rf6 {[%clk 0:01:02.6]} 19. Rad1 {[%clk 0:01:19.6]} 19... Qc6
{[%clk 0:00:59.9]} 20. a5 {[%clk 0:01:01.2]} 20... Rxe6 {[%clk 0:00:57.7]} 21.
Rfe1 {[%clk 0:00:52.6]} 21... Rf6 {[%clk 0:00:49.8]} 22. Bg5 {[%clk 0:00:49.4]}
22... Rf7 {[%clk 0:00:49.5]} 23. Qe3 {[%clk 0:00:45.8]} 23... e6 {[%clk
0:00:47.9]} 24. Bh6 {[%clk 0:00:42.4]} 24... Bh8 {[%clk 0:00:31.7]} 25. f3
{[%clk 0:00:34.1]} 25... Qc5 {[%clk 0:00:26.5]} 26. b4 {[%clk 0:00:27.4]} 26...
Qxc3 {[%clk 0:00:20.6]} 27. Qb6 {[%clk 0:00:14.1]} 27... Qc6 {[%clk 0:00:16.1]}
28. Rc1 {[%clk 0:00:14.1]} 28... Qxb6+ {[%clk 0:00:16]} 29. axb6 {[%clk
0:00:13.4]} 29... Rxc1 {[%clk 0:00:08.6]} 30. Rxc1 {[%clk 0:00:14.3]} 30... Bg7
{[%clk 0:00:08.7]} 31. Be3 {[%clk 0:00:06.3]} 31... h5 {[%clk 0:00:08.5]} 32.
Rc8+ {[%clk 0:00:06.4]} 32... Kh7 {[%clk 0:00:09]} 33. Bc5 {[%clk 0:00:05.3]}
33... e4 {[%clk 0:00:06.6]} 34. fxe4 {[%clk 0:00:04.8]} 34... dxe4 {[%clk
0:00:07.5]} 35. Re8 {[%clk 0:00:05.3]} 35... e5 {[%clk 0:00:07.4]} 36. Bd6
{[%clk 0:00:04.6]} 36... e3 {[%clk 0:00:06.2]} 37. Bxe5 {[%clk 0:00:04.2]} 37...
e2 {[%clk 0:00:06.6]} 38. Bg3 {[%clk 0:00:04.3]} 38... Rf1+ {[%clk 0:00:06]} 39.
Kh2 {[%clk 0:00:04.8]} 39... Rb1 {[%clk 0:00:02]} 40. Rxe2 {[%clk 0:00:04.4]}
40... Rxb4 {[%clk 0:00:02.6]} 41. Re7 {[%clk 0:00:05.1]} 41... Rxb6 {[%clk
0:00:03]} 42. Be5 {[%clk 0:00:05.3]} 42... Kh6 {[%clk 0:00:01.8]} 43. Bxg7+
{[%clk 0:00:05.3]} 43... Kg5 {[%clk 0:00:01.7]} 44. Re5+ {[%clk 0:00:04.4]}
44... Kf4 {[%clk 0:00:01.6]} 45. Rd5 {[%clk 0:00:03.7]} 45... Rc6 {[%clk
0:00:01.7]} 46. Bh6+ {[%clk 0:00:02.6]} 46... Ke4 {[%clk 0:00:02.1]} 47. Rd7
{[%clk 0:00:02.8]} 47... b5 {[%clk 0:00:02.7]} 48. Ra7 {[%clk 0:00:02.9]} 48...
b4 {[%clk 0:00:03.2]} 49. Rb7 {[%clk 0:00:02.7]} 49... a5 {[%clk 0:00:03.7]} 50.
Bf8 {[%clk 0:00:01.9]} 50... Kd3 {[%clk 0:00:03.9]} 51. Kg3 {[%clk 0:00:02.3]}
51... Kc3 {[%clk 0:00:04.3]} 52. Kf4 {[%clk 0:00:02.7]} 52... b3 {[%clk
0:00:04.7]} 53. Bg7+ {[%clk 0:00:03.2]} 53... Kc4 {[%clk 0:00:04.4]} 54. Kg5
{[%clk 0:00:04.1]} 54... a4 {[%clk 0:00:04.7]} 55. Bf6 {[%clk 0:00:03.6]} 55...
a3 {[%clk 0:00:04.8]} 56. Ra7 {[%clk 0:00:02.7]} 56... a2 {[%clk 0:00:04.7]} 57.
Bb2 {[%clk 0:00:02.3]} 57... Kd3 {[%clk 0:00:04.9]} 58. g4 {[%clk 0:00:01.5]}
58... Kc2 {[%clk 0:00:05.3]} 59. Be5 {[%clk 0:00:01.7]} 59... hxg4 {[%clk
0:00:05.7]} 60. hxg4 {[%clk 0:00:02.6]} 60... Rc5 {[%clk 0:00:04.7]} 61. Kf4
{[%clk 0:00:03.3]} 61... Rxe5 {[%clk 0:00:05.1]} 62. Kxe5 {[%clk 0:00:04.1]}
62... Kb1 {[%clk 0:00:05.3]} 63. Rxa2 {[%clk 0:00:04.4]} 63... bxa2 {[%clk
0:00:05.7]} 0-1

[Event "Late-Titled-Tuesday-Blitz-March-26-2024"]
[Site "Chess.com"]
[Date "2024.03.26"]
[Round "7"]
[White "ContrVersia"]
[Black "GlavkonVVS"]
[Result "1-0"]
[WhiteElo "2911"]
[BlackElo "2649"]
[TimeControl "180+1"]
[EndTime "15:19:22 PDT"]
[Termination "ContrVersia won by resignation"]

1. Nf3 {[%clk 0:03:00.9]} 1... Nf6 {[%clk 0:03:00.3]} 2. c4 {[%clk 0:03:00.8]}
2... c5 {[%clk 0:03:00.8]} 3. b3 {[%clk 0:03:00.3]} 3... Nc6 {[%clk 0:03:01.1]}
4. Bb2 {[%clk 0:03:00.2]} 4... e6 {[%clk 0:03:00.7]} 5. g3 {[%clk 0:02:59.9]}
5... Be7 {[%clk 0:03:01.3]} 6. Bg2 {[%clk 0:02:59.9]} 6... O-O {[%clk
0:03:01.9]} 7. O-O {[%clk 0:03:00.1]} 7... d5 {[%clk 0:03:00.9]} 8. e3 {[%clk
0:03:00.3]} 8... d4 {[%clk 0:02:59.4]} 9. exd4 {[%clk 0:03:00.5]} 9... cxd4
{[%clk 0:02:59.7]} 10. Re1 {[%clk 0:03:00.7]} 10... Bc5 {[%clk 0:02:38.8]} 11.
Na3 {[%clk 0:02:52.2]} 11... Nd7 {[%clk 0:02:30.7]} 12. Nc2 {[%clk 0:02:48]}
12... e5 {[%clk 0:02:29.3]} 13. d3 {[%clk 0:02:47.2]} 13... a5 {[%clk
0:02:28.1]} 14. a3 {[%clk 0:02:34.9]} 14... Re8 {[%clk 0:02:27.1]} 15. Nd2
{[%clk 0:02:30.3]} 15... Bf8 {[%clk 0:02:12.3]} 16. Rb1 {[%clk 0:02:26.8]} 16...
Nc5 {[%clk 0:02:08.6]} 17. Qf3 {[%clk 0:02:15.2]} 17... Qd7 {[%clk 0:01:31.6]}
18. b4 {[%clk 0:02:13]} 18... axb4 {[%clk 0:01:30.4]} 19. axb4 {[%clk
0:02:13.2]} 19... Na4 {[%clk 0:01:29.5]} 20. b5 {[%clk 0:02:10.5]} 20... Nb4
{[%clk 0:01:22.2]} 21. Nxb4 {[%clk 0:02:05]} 21... Bxb4 {[%clk 0:01:22.2]} 22.
Bc1 {[%clk 0:02:04.5]} 22... Bc3 {[%clk 0:01:16.2]} 23. Rd1 {[%clk 0:01:55]}
23... Nc5 {[%clk 0:01:15.8]} 24. Ne4 {[%clk 0:01:52.3]} 24... Nxe4 {[%clk
0:01:16]} 25. Qxe4 {[%clk 0:01:52.5]} 25... Ra2 {[%clk 0:01:13.9]} 26. c5 {[%clk
0:01:10.5]} 26... Qc7 {[%clk 0:01:08.9]} 27. Qd5 {[%clk 0:01:10.4]} 27... Be6
{[%clk 0:00:44.1]} 28. b6 {[%clk 0:01:08.9]} 28... Bxd5 {[%clk 0:00:24.5]} 29.
bxc7 {[%clk 0:01:08.8]} 29... Bxg2 {[%clk 0:00:23.1]} 30. Kxg2 {[%clk
0:01:09.7]} 30... Ra7 {[%clk 0:00:21]} 31. Bd2 {[%clk 0:00:38.4]} 31... Rc8
{[%clk 0:00:18.7]} 32. Bxc3 {[%clk 0:00:35.5]} 32... dxc3 {[%clk 0:00:19.1]} 33.
Rdc1 {[%clk 0:00:36.4]} 33... Rxc7 {[%clk 0:00:19.2]} 34. Rxc3 {[%clk
0:00:37.1]} 34... f6 {[%clk 0:00:19.3]} 35. f4 {[%clk 0:00:30.9]} 35... Ra5
{[%clk 0:00:18.8]} 36. fxe5 {[%clk 0:00:28.8]} 36... fxe5 {[%clk 0:00:19.1]} 37.
Rbc1 {[%clk 0:00:28.2]} 37... Kf7 {[%clk 0:00:19]} 38. Kf3 {[%clk 0:00:27]}
38... Ke6 {[%clk 0:00:19.3]} 39. Ke4 {[%clk 0:00:27.6]} 39... Ra4+ {[%clk
0:00:19.5]} 40. Rc4 {[%clk 0:00:28.1]} 40... Rxc5 {[%clk 0:00:18]} 41. Rxa4
{[%clk 0:00:22.3]} 41... Rxc1 {[%clk 0:00:18.1]} 42. Rb4 {[%clk 0:00:22.9]}
42... Rc7 {[%clk 0:00:15.9]} 43. Rb6+ {[%clk 0:00:22.4]} 43... Kf7 {[%clk
0:00:11.9]} 44. Kxe5 {[%clk 0:00:22.1]} 44... Re7+ {[%clk 0:00:10.4]} 45. Kd5
{[%clk 0:00:22.1]} 45... Rd7+ {[%clk 0:00:10.3]} 46. Ke4 {[%clk 0:00:21]} 46...
h5 {[%clk 0:00:10.3]} 47. d4 {[%clk 0:00:20.9]} 47... Ke7 {[%clk 0:00:09.5]} 48.
d5 {[%clk 0:00:20.8]} 48... Kf7 {[%clk 0:00:07.6]} 49. Ke5 {[%clk 0:00:20.3]}
49... Re7+ {[%clk 0:00:07.8]} 50. Kd4 {[%clk 0:00:20.8]} 50... Rd7 {[%clk
0:00:07.2]} 51. Rb1 {[%clk 0:00:11.7]} 51... Kf6 {[%clk 0:00:06.5]} 52. Kc5
{[%clk 0:00:10.2]} 52... Ke5 {[%clk 0:00:06.5]} 53. Re1+ {[%clk 0:00:10.4]}
53... Kf5 {[%clk 0:00:06.9]} 54. d6 {[%clk 0:00:10]} 54... g5 {[%clk 0:00:05.6]}
55. Kd5 {[%clk 0:00:09.8]} 55... h4 {[%clk 0:00:05]} 56. gxh4 {[%clk 0:00:09.6]}
56... gxh4 {[%clk 0:00:05.5]} 57. Rf1+ {[%clk 0:00:10]} 57... Kg4 {[%clk
0:00:05.6]} 58. Ke6 {[%clk 0:00:10.5]} 58... Rd8 {[%clk 0:00:05.9]} 59. Ke7
{[%clk 0:00:10.5]} 59... Rb8 {[%clk 0:00:06.1]} 60. d7 {[%clk 0:00:10.8]} 60...
b5 {[%clk 0:00:03.4]} 61. Rf8 {[%clk 0:00:08.8]} 61... Rb7 {[%clk 0:00:03.4]}
62. Kd6 {[%clk 0:00:09.1]} 62... Rxd7+ {[%clk 0:00:03.4]} 63. Kxd7 {[%clk
0:00:10]} 63... Kh3 {[%clk 0:00:03.9]} 64. Rf2 {[%clk 0:00:10.1]} 64... Kg4
{[%clk 0:00:02.3]} 65. Kc6 {[%clk 0:00:10]} 65... b4 {[%clk 0:00:02.7]} 66. Kc5
{[%clk 0:00:10.4]} 66... b3 {[%clk 0:00:03.3]} 67. Kc4 {[%clk 0:00:10.9]} 67...
b2 {[%clk 0:00:03.3]} 68. Rxb2 {[%clk 0:00:11]} 1-0

[Event "Late-Titled-Tuesday-Blitz-March-26-2024"]
[Site "Chess.com"]
[Date "2024.03.26"]
[Round "7"]
[White "jcibarra"]
[Black "dretch"]
[Result "1-0"]
[WhiteElo "3000"]
[BlackElo "2864"]
[TimeControl "180+1"]
[EndTime "15:19:28 PDT"]
[Termination "jcibarra won on time"]

1. e4 {[%clk 0:03:00.9]} 1... e6 {[%clk 0:02:58.6]} 2. d4 {[%clk 0:03:00.6]}
2... d5 {[%clk 0:02:58.9]} 3. Nc3 {[%clk 0:03:01.2]} 3... Nf6 {[%clk 0:02:58.4]}
4. Bg5 {[%clk 0:03:00.8]} 4... dxe4 {[%clk 0:02:58.5]} 5. Nxe4 {[%clk 0:03:01]}
5... Be7 {[%clk 0:02:58.9]} 6. Bxf6 {[%clk 0:03:00.7]} 6... Bxf6 {[%clk
0:02:59.8]} 7. Nf3 {[%clk 0:03:00.4]} 7... Nd7 {[%clk 0:03:00.3]} 8. Qd2 {[%clk
0:02:57.7]} 8... Be7 {[%clk 0:02:58.6]} 9. O-O-O {[%clk 0:02:58.1]} 9... O-O
{[%clk 0:02:58.9]} 10. Bd3 {[%clk 0:02:51.8]} 10... b6 {[%clk 0:02:56.9]} 11. c3
{[%clk 0:02:51.1]} 11... Bb7 {[%clk 0:02:53.2]} 12. Qc2 {[%clk 0:02:51.3]} 12...
c5 {[%clk 0:02:35.8]} 13. dxc5 {[%clk 0:02:51.1]} 13... Qc7 {[%clk 0:02:35.9]}
14. cxb6 {[%clk 0:02:22]} 14... Nxb6 {[%clk 0:02:14.5]} 15. Kb1 {[%clk 0:02:21]}
15... Rab8 {[%clk 0:02:13.4]} 16. Nd4 {[%clk 0:02:16.2]} 16... Bxe4 {[%clk
0:02:00.4]} 17. Bxe4 {[%clk 0:02:11.2]} 17... Nc4 {[%clk 0:01:59.4]} 18. Nb3
{[%clk 0:02:07.1]} 18... h6 {[%clk 0:01:24.8]} 19. Bd3 {[%clk 0:01:59.5]} 19...
a5 {[%clk 0:01:10.4]} 20. Bxc4 {[%clk 0:01:58.7]} 20... Qxc4 {[%clk 0:01:10.3]}
21. Nxa5 {[%clk 0:01:53.6]} 21... Qa6 {[%clk 0:01:10.2]} 22. Nb3 {[%clk
0:01:52.6]} 22... Ra8 {[%clk 0:00:57.1]} 23. Nc1 {[%clk 0:01:53.2]} 23... Rfb8
{[%clk 0:00:56.3]} 24. Ka1 {[%clk 0:01:53.6]} 24... Qb7 {[%clk 0:00:47.4]} 25.
f3 {[%clk 0:01:45]} 25... Ra5 {[%clk 0:00:44.2]} 26. Rd2 {[%clk 0:01:39.9]}
26... Bg5 {[%clk 0:00:36.8]} 27. Rd4 {[%clk 0:01:34.4]} 27... Qa8 {[%clk
0:00:26.5]} 28. f4 {[%clk 0:01:02]} 28... e5 {[%clk 0:00:19.4]} 29. Rb4 {[%clk
0:00:39.6]} 29... Bxf4 {[%clk 0:00:17.5]} 30. Rxb8+ {[%clk 0:00:39.6]} 30...
Qxb8 {[%clk 0:00:17.7]} 31. Nd3 {[%clk 0:00:37]} 31... Bg5 {[%clk 0:00:16.1]}
32. Nb4 {[%clk 0:00:34.6]} 32... Qb7 {[%clk 0:00:14.5]} 33. Rd1 {[%clk
0:00:29.9]} 33... e4 {[%clk 0:00:13.1]} 34. a3 {[%clk 0:00:22.8]} 34... Re5
{[%clk 0:00:11.7]} 35. g3 {[%clk 0:00:19.3]} 35... e3 {[%clk 0:00:08.3]} 36. Qe2
{[%clk 0:00:19.6]} 36... Qe4 {[%clk 0:00:07.1]} 37. Rd4 {[%clk 0:00:17.9]} 37...
Qh1+ {[%clk 0:00:06.8]} 38. Ka2 {[%clk 0:00:18.6]} 38... Be7 {[%clk 0:00:06.9]}
39. Nd3 {[%clk 0:00:17.2]} 39... Re6 {[%clk 0:00:07.4]} 40. Nf4 {[%clk
0:00:17.4]} 40... Re5 {[%clk 0:00:07.6]} 41. Nd3 {[%clk 0:00:12]} 41... Re6
{[%clk 0:00:07.9]} 42. c4 {[%clk 0:00:12.2]} 42... Bf6 {[%clk 0:00:07.3]} 43.
Rd5 {[%clk 0:00:09.8]} 43... Qe4 {[%clk 0:00:07.1]} 44. Nf4 {[%clk 0:00:09.6]}
44... Rb6 {[%clk 0:00:07.1]} 45. Rb5 {[%clk 0:00:06.8]} 45... Rxb5 {[%clk
0:00:07.3]} 46. cxb5 {[%clk 0:00:07.7]} 46... Bd4 {[%clk 0:00:06.9]} 47. Qd3
{[%clk 0:00:05]} 47... Qe5 {[%clk 0:00:05]} 48. Qb3 {[%clk 0:00:02.6]} 48... Bb6
{[%clk 0:00:04.9]} 49. Ne2 {[%clk 0:00:02.6]} 49... g5 {[%clk 0:00:04.7]} 50. a4
{[%clk 0:00:02.7]} 50... Ba5 {[%clk 0:00:04.2]} 51. Qd3 {[%clk 0:00:03]} 51...
Qe6+ {[%clk 0:00:04]} 52. Kb1 {[%clk 0:00:03.5]} 52... Bb6 {[%clk 0:00:03.7]}
53. b3 {[%clk 0:00:03.2]} 53... Kg7 {[%clk 0:00:02.9]} 54. Kc2 {[%clk
0:00:03.6]} 54... f6 {[%clk 0:00:03.3]} 55. Qc3 {[%clk 0:00:02.9]} 55... Qe4+
{[%clk 0:00:03.1]} 56. Qd3 {[%clk 0:00:03.8]} 56... Qe7 {[%clk 0:00:03]} 57. Qd5
{[%clk 0:00:03.9]} 57... Qc7+ {[%clk 0:00:03]} 58. Kd3 {[%clk 0:00:04.1]} 58...
Qe7 {[%clk 0:00:03]} 59. g4 {[%clk 0:00:03.6]} 59... Qe8 {[%clk 0:00:03.1]} 60.
Ng3 {[%clk 0:00:04.2]} 60... Kh7 {[%clk 0:00:02.8]} 61. Qe4+ {[%clk 0:00:03.9]}
61... Qxe4+ {[%clk 0:00:02.7]} 62. Nxe4 {[%clk 0:00:04.8]} 62... Kg6 {[%clk
0:00:02.8]} 63. Ng3 {[%clk 0:00:05.4]} 63... Kf7 {[%clk 0:00:02.9]} 64. b4
{[%clk 0:00:05.4]} 64... Ke6 {[%clk 0:00:03.2]} 65. a5 {[%clk 0:00:06]} 65...
Bc7 {[%clk 0:00:03.2]} 66. Kxe3 {[%clk 0:00:05.3]} 66... Kd5 {[%clk 0:00:03.2]}
67. Kd3 {[%clk 0:00:05.6]} 67... Bd8 {[%clk 0:00:02.6]} 68. Nf5 {[%clk
0:00:05.5]} 68... Ke5 {[%clk 0:00:02]} 69. b6 {[%clk 0:00:05.7]} 1-0

[Event "Late-Titled-Tuesday-Blitz-March-26-2024"]
[Site "Chess.com"]
[Date "2024.03.26"]
[Round "7"]
[White "Mazetovic"]
[Black "GMKrikor"]
[Result "0-1"]
[WhiteElo "2617"]
[BlackElo "2832"]
[TimeControl "180+1"]
[EndTime "15:19:29 PDT"]
[Termination "GMKrikor won by resignation"]

1. e4 {[%clk 0:03:00.9]} 1... c5 {[%clk 0:03:00.1]} 2. Nf3 {[%clk 0:03:00.2]}
2... Nc6 {[%clk 0:03:00.4]} 3. Bb5 {[%clk 0:02:59.7]} 3... Nf6 {[%clk
0:02:59.9]} 4. Nc3 {[%clk 0:02:58.5]} 4... Qc7 {[%clk 0:02:59.8]} 5. O-O {[%clk
0:02:57.8]} 5... Nd4 {[%clk 0:03:00.1]} 6. d3 {[%clk 0:02:45]} 6... a6 {[%clk
0:02:49.6]} 7. Bc4 {[%clk 0:02:43.1]} 7... e6 {[%clk 0:02:31.2]} 8. Nxd4 {[%clk
0:02:25.8]} 8... cxd4 {[%clk 0:02:32.1]} 9. Ne2 {[%clk 0:02:24.9]} 9... Bc5
{[%clk 0:02:32.8]} 10. Bb3 {[%clk 0:02:23.7]} 10... h5 {[%clk 0:02:32.1]} 11.
Bf4 {[%clk 0:02:21.1]} 11... d6 {[%clk 0:02:24.5]} 12. c3 {[%clk 0:02:17]} 12...
dxc3 {[%clk 0:02:21.5]} 13. bxc3 {[%clk 0:02:16.5]} 13... Bd7 {[%clk 0:02:13]}
14. h3 {[%clk 0:02:02.7]} 14... Bb6 {[%clk 0:02:06.5]} 15. Rc1 {[%clk
0:01:58.5]} 15... h4 {[%clk 0:02:04.4]} 16. Bh2 {[%clk 0:01:55.6]} 16... e5
{[%clk 0:01:56.5]} 17. Kh1 {[%clk 0:01:52]} 17... Nh5 {[%clk 0:01:50.5]} 18. d4
{[%clk 0:01:48.8]} 18... O-O {[%clk 0:01:36.8]} 19. f4 {[%clk 0:01:38.3]} 19...
exd4 {[%clk 0:01:07]} 20. cxd4 {[%clk 0:01:33.1]} 20... Qd8 {[%clk 0:01:07.3]}
21. Qd3 {[%clk 0:00:42.1]} 21... Bb5 {[%clk 0:00:59.9]} 22. Bc4 {[%clk
0:00:37.9]} 22... Bxc4 {[%clk 0:00:59]} 23. Qxc4 {[%clk 0:00:33.9]} 23... d5
{[%clk 0:00:54.7]} 24. Qxd5 {[%clk 0:00:33.1]} 24... Qxd5 {[%clk 0:00:48.4]} 25.
exd5 {[%clk 0:00:34]} 25... Nf6 {[%clk 0:00:48.6]} 26. Rb1 {[%clk 0:00:22.6]}
26... Nxd5 {[%clk 0:00:48.4]} 27. f5 {[%clk 0:00:23.1]} 27... Rfe8 {[%clk
0:00:26.9]} 28. Nf4 {[%clk 0:00:22.8]} 28... Ne3 {[%clk 0:00:27.1]} 29. Rf3
{[%clk 0:00:18.6]} 29... Bxd4 {[%clk 0:00:24.4]} 30. Rxb7 {[%clk 0:00:17.5]}
30... Nxf5 {[%clk 0:00:24.8]} 31. Rb1 {[%clk 0:00:15.7]} 31... Be5 {[%clk
0:00:19.4]} 32. Nd5 {[%clk 0:00:12]} 32... Nd4 {[%clk 0:00:20]} 33. Rd3 {[%clk
0:00:09.2]} 33... Bxh2 {[%clk 0:00:14.1]} 34. Kxh2 {[%clk 0:00:09.2]} 34... Ne6
{[%clk 0:00:12.7]} 35. Ra3 {[%clk 0:00:07.7]} 35... Rad8 {[%clk 0:00:11.9]} 36.
Ne3 {[%clk 0:00:06.3]} 36... Rd2 {[%clk 0:00:08.9]} 37. Nc4 {[%clk 0:00:06]}
37... Rc2 {[%clk 0:00:07.5]} 38. Ne3 {[%clk 0:00:05.9]} 38... Re2 {[%clk
0:00:07.8]} 39. Nf5 {[%clk 0:00:05.6]} 39... g5 {[%clk 0:00:05.4]} 40. Rf1
{[%clk 0:00:03.9]} 40... Nf4 {[%clk 0:00:05.3]} 41. Nxh4 {[%clk 0:00:04.1]}
41... R8e4 {[%clk 0:00:02.7]} 42. Nf3 {[%clk 0:00:03.1]} 42... Rxg2+ {[%clk
0:00:02.6]} 43. Kh1 {[%clk 0:00:03.6]} 43... Rg3 {[%clk 0:00:02.7]} 44. Rxa6
{[%clk 0:00:02.8]} 44... Rxh3+ {[%clk 0:00:03.1]} 45. Kg1 {[%clk 0:00:03.3]}
45... Rg3+ {[%clk 0:00:03.7]} 46. Kh2 {[%clk 0:00:03.3]} 46... Rh3+ {[%clk
0:00:02.7]} 47. Kg1 {[%clk 0:00:03.7]} 47... Re3 {[%clk 0:00:02.7]} 48. Nxg5
{[%clk 0:00:03]} 48... Reg3+ {[%clk 0:00:03]} 49. Kf2 {[%clk 0:00:03.4]} 49...
Rxg5 {[%clk 0:00:03.7]} 50. Ra8+ {[%clk 0:00:02.9]} 50... Kg7 {[%clk 0:00:03.7]}
51. Ra4 {[%clk 0:00:03.8]} 51... Ne6 {[%clk 0:00:03.5]} 52. Re4 {[%clk
0:00:03.6]} 52... Ra3 {[%clk 0:00:03.2]} 53. Re2 {[%clk 0:00:03.3]} 53... Rg6
{[%clk 0:00:03.4]} 54. Rd2 {[%clk 0:00:03.9]} 54... Rf6+ {[%clk 0:00:03.8]} 55.
Ke1 {[%clk 0:00:04.8]} 55... Rxf1+ {[%clk 0:00:04.1]} 56. Kxf1 {[%clk
0:00:05.7]} 56... Kf6 {[%clk 0:00:04.8]} 57. Ke1 {[%clk 0:00:06]} 57... Ke7
{[%clk 0:00:05.4]} 58. Kd1 {[%clk 0:00:06.7]} 58... f5 {[%clk 0:00:06]} 59. Kc1
{[%clk 0:00:07.4]} 59... Kf6 {[%clk 0:00:06.4]} 60. Kb2 {[%clk 0:00:08.3]} 60...
Ra8 {[%clk 0:00:06.6]} 61. Kb3 {[%clk 0:00:08.9]} 61... Ke5 {[%clk 0:00:06.5]}
62. a4 {[%clk 0:00:09.5]} 62... Nc5+ {[%clk 0:00:05.3]} 63. Kb4 {[%clk
0:00:09.1]} 63... Nxa4 {[%clk 0:00:05.2]} 64. Ra2 {[%clk 0:00:09.7]} 64... f4
{[%clk 0:00:05.4]} 65. Re2+ {[%clk 0:00:09.5]} 65... Kd4 {[%clk 0:00:05.4]} 66.
Re7 {[%clk 0:00:10.4]} 66... f3 {[%clk 0:00:04.4]} 67. Rd7+ {[%clk 0:00:11]}
67... Ke3 {[%clk 0:00:04.8]} 68. Rf7 {[%clk 0:00:11.8]} 68... Nb2 {[%clk
0:00:04.8]} 69. Re7+ {[%clk 0:00:11.7]} 69... Kf2 {[%clk 0:00:04.7]} 70. Kb3
{[%clk 0:00:12.6]} 70... Nd3 {[%clk 0:00:04.7]} 71. Kc2 {[%clk 0:00:13.1]} 71...
Nf4 {[%clk 0:00:05.1]} 72. Rf7 {[%clk 0:00:13.1]} 72... Rc8+ {[%clk 0:00:04.7]}
73. Kd2 {[%clk 0:00:12.7]} 73... Rd8+ {[%clk 0:00:05.2]} 0-1